[Event "Live Chess"]
[Site "Chess.com"]
[Date "2023.05.20"]
[Round "-"]
[White "tpm07"]
[Black "Ra2orLeaf"]
[Result "1-0"]
[WhiteElo "1996"]
[BlackElo "1135"]
[TimeControl "300"]
[EndTime "10:07:43 PDT"]
[Termination "tpm07 won by resignation"]

1. e4 {[%clk 0:04:53.7]} 1... c5 {[%clk 0:04:44.4]} 2. Nf3 {[%clk 0:04:51.4]}
2... Nc6 {[%clk 0:04:43.5]} 3. d4 {[%clk 0:04:50.5]} 3... cxd4 {[%clk
0:04:42.4]} 4. Nxd4 {[%clk 0:04:50.4]} 4... Qc7 {[%clk 0:04:40.5]} 5. Nc3 {[%clk
0:04:46.2]} 5... e5 {[%clk 0:04:38.3]} 6. Ndb5 {[%clk 0:04:43.5]} 6... Qd8
{[%clk 0:04:32.6]} 7. Nd5 {[%clk 0:04:41.9]} 7... Bb4+ {[%clk 0:04:17.7]} 8. Bd2
{[%clk 0:04:34.6]} 8... Bxd2+ {[%clk 0:04:04.8]} 9. Qxd2 {[%clk 0:04:31.8]} 9...
Nge7 {[%clk 0:03:57.7]} 10. Nbc7+ {[%clk 0:04:27.5]} 10... Kf8 {[%clk
0:03:57.6]} 11. Nxa8 {[%clk 0:04:24.6]} 11... b6 {[%clk 0:03:54.9]} 12. Nac7
{[%clk 0:04:20.3]} 12... Nxd5 {[%clk 0:03:52.6]} 13. Nxd5 {[%clk 0:04:17.3]}
13... Bb7 {[%clk 0:03:51.4]} 14. Be2 {[%clk 0:04:12]} 1-0

[Event "Live Chess"]
[Site "Chess.com"]
[Date "2023.05.20"]
[Round "-"]
[White "Greenbecker"]
[Black "Enhard"]
[Result "0-1"]
[WhiteElo "1669"]
[BlackElo "1424"]
[TimeControl "300"]
[EndTime "10:07:48 PDT"]
[Termination "Enhard won on time"]

1. e4 {[%clk 0:04:56.1]} 1... e6 {[%clk 0:04:58.7]} 2. d4 {[%clk 0:04:53]} 2...
d5 {[%clk 0:04:57]} 3. exd5 {[%clk 0:04:51.5]} 3... exd5 {[%clk 0:04:56]} 4. Bd3
{[%clk 0:04:50.9]} 4... Nf6 {[%clk 0:04:55.1]} 5. Nf3 {[%clk 0:04:50.3]} 5...
Be7 {[%clk 0:04:54.1]} 6. O-O {[%clk 0:04:49.4]} 6... O-O {[%clk 0:04:53.4]} 7.
Re1 {[%clk 0:04:48.5]} 7... Bg4 {[%clk 0:04:52.4]} 8. Bg5 {[%clk 0:04:46.9]}
8... Re8 {[%clk 0:04:51.2]} 9. h3 {[%clk 0:04:40]} 9... Bh5 {[%clk 0:04:49.9]}
10. Nc3 {[%clk 0:04:38.4]} 10... c6 {[%clk 0:04:48.3]} 11. Bxf6 {[%clk
0:04:34.1]} 11... Bxf6 {[%clk 0:04:46]} 12. Rxe8+ {[%clk 0:04:25]} 12... Qxe8
{[%clk 0:04:44.3]} 13. Be2 {[%clk 0:04:24.3]} 13... Nd7 {[%clk 0:04:42.5]} 14.
Qd2 {[%clk 0:04:21.6]} 14... h6 {[%clk 0:04:35.1]} 15. Re1 {[%clk 0:04:19]}
15... Qf8 {[%clk 0:04:33.5]} 16. Nh2 {[%clk 0:04:06.4]} 16... Bxe2 {[%clk
0:04:31.9]} 17. Nxe2 {[%clk 0:04:01]} 17... Re8 {[%clk 0:04:30.7]} 18. c3 {[%clk
0:03:54.8]} 18... Qe7 {[%clk 0:04:29.2]} 19. Nf3 {[%clk 0:03:52]} 19... Nb6
{[%clk 0:04:25.2]} 20. Ng3 {[%clk 0:03:43.9]} 20... Qd7 {[%clk 0:04:20.9]} 21.
Rxe8+ {[%clk 0:03:40.2]} 21... Qxe8 {[%clk 0:04:20]} 22. b3 {[%clk 0:03:38.8]}
22... Nd7 {[%clk 0:04:18.1]} 23. Kf1 {[%clk 0:03:32.9]} 23... Qe7 {[%clk
0:04:08.6]} 24. Ne2 {[%clk 0:03:22.2]} 24... Nb6 {[%clk 0:03:53.2]} 25. Qf4
{[%clk 0:03:11.3]} 25... Qd8 {[%clk 0:03:45.3]} 26. Ne5 {[%clk 0:03:05.6]} 26...
Bxe5 {[%clk 0:03:37.3]} 27. Qxe5 {[%clk 0:03:01.7]} 27... Nc8 {[%clk 0:03:22]}
28. Nf4 {[%clk 0:02:52.3]} 28... f6 {[%clk 0:03:00.8]} 29. Qe6+ {[%clk
0:02:45.8]} 29... Kh7 {[%clk 0:02:54.2]} 30. Qf5+ {[%clk 0:02:43.3]} 30... Kg8
{[%clk 0:02:51.2]} 31. Ne6 {[%clk 0:02:38.1]} 31... Qe7 {[%clk 0:02:34.2]} 32.
Nxg7 {[%clk 0:02:19.5]} 32... Qxg7 {[%clk 0:02:23.4]} 33. Qxc8+ {[%clk
0:02:16.6]} 33... Kh7 {[%clk 0:02:22.9]} 34. Qf5+ {[%clk 0:02:13]} 34... Kg8
{[%clk 0:02:21]} 35. g3 {[%clk 0:02:02]} 35... a6 {[%clk 0:02:19.7]} 36. Qe6+
{[%clk 0:01:54.3]} 36... Kh7 {[%clk 0:02:17.2]} 37. g4 {[%clk 0:01:44.2]} 37...
Kh8 {[%clk 0:02:07.7]} 38. Ke2 {[%clk 0:01:39.7]} 38... Kh7 {[%clk 0:02:04.7]}
39. f4 {[%clk 0:01:32.9]} 39... Qf8 {[%clk 0:01:56.1]} 40. Qd7+ {[%clk
0:01:24.5]} 40... Kg8 {[%clk 0:01:54]} 41. Qxb7 {[%clk 0:01:19.9]} 41... Qe8+
{[%clk 0:01:53.2]} 42. Kf3 {[%clk 0:01:15.6]} 42... Qe4+ {[%clk 0:01:51.9]} 43.
Kg3 {[%clk 0:01:11.6]} 43... Qe3+ {[%clk 0:01:50.7]} 44. Kh4 {[%clk 0:01:10.6]}
44... Qxf4 {[%clk 0:01:27.7]} 45. Qc8+ {[%clk 0:00:58.8]} 45... Kg7 {[%clk
0:01:25.9]} 46. Qd7+ {[%clk 0:00:55.9]} 46... Kf8 {[%clk 0:01:20.3]} 47. Qf5
{[%clk 0:00:46.2]} 47... Qd6 {[%clk 0:01:03]} 48. Kh5 {[%clk 0:00:33.7]} 48...
Qd8 {[%clk 0:00:52]} 49. Kxh6 {[%clk 0:00:26.4]} 49... Qe7 {[%clk 0:00:46.2]}
50. Qg6 {[%clk 0:00:18.1]} 50... Qe3+ {[%clk 0:00:43]} 51. Kh7 {[%clk 0:00:11]}
51... Qxh3+ {[%clk 0:00:41.7]} 52. Qh6+ {[%clk 0:00:10.4]} 52... Qxh6+ {[%clk
0:00:40.3]} 53. Kxh6 {[%clk 0:00:09.8]} 53... Kf7 {[%clk 0:00:39.9]} 54. Kh5
{[%clk 0:00:07.9]} 54... Kg7 {[%clk 0:00:38.8]} 55. Kh4 {[%clk 0:00:07]} 55...
Kg6 {[%clk 0:00:37.6]} 56. Kg3 {[%clk 0:00:05.4]} 56... Kg5 {[%clk 0:00:36.7]}
57. Kf3 {[%clk 0:00:04.7]} 57... f5 {[%clk 0:00:35.1]} 58. gxf5 {[%clk
0:00:03.2]} 58... Kxf5 {[%clk 0:00:34.6]} 59. c4 {[%clk 0:00:02.7]} 59... Ke6
{[%clk 0:00:32.5]} 60. Ke3 {[%clk 0:00:01.1]} 60... Kd6 {[%clk 0:00:30.8]} 0-1

[Event "Live Chess"]
[Site "Chess.com"]
[Date "2023.05.20"]
[Round "-"]
[White "GMHarry-youtube"]
[Black "BostonStrangler"]
[Result "0-1"]
[WhiteElo "2172"]
[BlackElo "2051"]
[TimeControl "300"]
[EndTime "10:07:48 PDT"]
[Termination "BostonStrangler won by resignation"]

1. e4 {[%clk 0:04:56.3]} 1... c5 {[%clk 0:04:58.8]} 2. Nf3 {[%clk 0:04:51.2]}
2... g6 {[%clk 0:04:57]} 3. c3 {[%clk 0:04:49.7]} 3... Nc6 {[%clk 0:04:55.2]} 4.
d4 {[%clk 0:04:48.5]} 4... cxd4 {[%clk 0:04:54.4]} 5. cxd4 {[%clk 0:04:48.4]}
5... d5 {[%clk 0:04:53.2]} 6. e5 {[%clk 0:04:46.9]} 6... Bg4 {[%clk 0:04:51]} 7.
Be2 {[%clk 0:04:41.2]} 7... e6 {[%clk 0:04:46.6]} 8. Ng1 {[%clk 0:04:39]} 8...
Bxe2 {[%clk 0:04:44.3]} 9. Nxe2 {[%clk 0:04:38.9]} 9... Nge7 {[%clk 0:04:37.2]}
10. Bg5 {[%clk 0:04:35.4]} 10... Qb6 {[%clk 0:04:35.3]} 11. b3 {[%clk
0:04:29.7]} 11... Nf5 {[%clk 0:04:27.6]} 12. Nbc3 {[%clk 0:04:18.4]} 12... Ncxd4
{[%clk 0:04:18.4]} 13. Nxd4 {[%clk 0:04:14]} 13... Qxd4 {[%clk 0:04:12.1]} 14.
Qxd4 {[%clk 0:04:07.9]} 14... Nxd4 {[%clk 0:04:10.7]} 15. O-O-O {[%clk
0:04:07.5]} 15... Nc6 {[%clk 0:04:05.7]} 16. Nb5 {[%clk 0:04:05]} 16... Kd7
{[%clk 0:03:59.5]} 17. Kb1 {[%clk 0:04:00.9]} 17... a6 {[%clk 0:03:57.6]} 18.
Nd4 {[%clk 0:03:50.5]} 18... Bg7 {[%clk 0:03:40.5]} 19. f4 {[%clk 0:03:48.5]}
19... h6 {[%clk 0:03:35]} 20. Bh4 {[%clk 0:03:46.4]} 20... g5 {[%clk 0:03:34.1]}
21. Nxc6 {[%clk 0:03:40.8]} 21... bxc6 {[%clk 0:03:25.4]} 22. fxg5 {[%clk
0:03:29.9]} 22... hxg5 {[%clk 0:03:24.3]} 23. Bxg5 {[%clk 0:03:29.8]} 23... Bxe5
{[%clk 0:03:22.7]} 24. h4 {[%clk 0:03:29]} 24... f6 {[%clk 0:03:18.6]} 25. Bd2
{[%clk 0:03:23.4]} 25... Rag8 {[%clk 0:03:17.2]} 26. Rdg1 {[%clk 0:03:17.5]}
26... Bd4 {[%clk 0:03:11.9]} 27. Rd1 {[%clk 0:03:05.8]} 27... Rxg2 {[%clk
0:03:08.8]} 28. h5 {[%clk 0:03:00]} 28... Be5 {[%clk 0:03:01.2]} 29. h6 {[%clk
0:02:51.2]} 29... f5 {[%clk 0:02:49.4]} 30. Rdg1 {[%clk 0:02:39.7]} 30... Rxd2
{[%clk 0:02:40.7]} 31. h7 {[%clk 0:02:37]} 31... Rb2+ {[%clk 0:02:31.7]} 32. Kc1
{[%clk 0:02:35.6]} 32... Rxa2 {[%clk 0:02:27.9]} 33. Rh6 {[%clk 0:02:31.3]}
33... Ra1+ {[%clk 0:02:24.5]} 0-1

[Event "Live Chess"]
[Site "Chess.com"]
[Date "2023.05.20"]
[Round "-"]
[White "gmnorfolk"]
[Black "xx_blindpuffin_xx"]
[Result "0-1"]
[WhiteElo "2179"]
[BlackElo "2193"]
[TimeControl "300"]
[EndTime "10:07:50 PDT"]
[Termination "xx_blindpuffin_xx won by resignation"]

1. d4 {[%clk 0:04:57.9]} 1... d5 {[%clk 0:04:58.3]} 2. c4 {[%clk 0:04:54]} 2...
e6 {[%clk 0:04:57.4]} 3. Nf3 {[%clk 0:04:52.2]} 3... c6 {[%clk 0:04:56.5]} 4.
Nbd2 {[%clk 0:04:48.4]} 4... Bd6 {[%clk 0:04:52.6]} 5. g3 {[%clk 0:04:45.5]}
5... f5 {[%clk 0:04:50.9]} 6. Bg2 {[%clk 0:04:43.5]} 6... Nf6 {[%clk 0:04:50.3]}
7. O-O {[%clk 0:04:37.6]} 7... O-O {[%clk 0:04:49.3]} 8. Qc2 {[%clk 0:04:36.4]}
8... b6 {[%clk 0:04:46.1]} 9. b3 {[%clk 0:04:32.8]} 9... Nbd7 {[%clk 0:04:44.2]}
10. a4 {[%clk 0:04:30.1]} 10... Ne4 {[%clk 0:04:40.7]} 11. Ba3 {[%clk
0:04:25.1]} 11... c5 {[%clk 0:04:26.3]} 12. e3 {[%clk 0:04:07.8]} 12... Bb7
{[%clk 0:04:21.1]} 13. Rad1 {[%clk 0:03:48.1]} 13... Rc8 {[%clk 0:04:11.3]} 14.
dxc5 {[%clk 0:03:42.7]} 14... Ndxc5 {[%clk 0:03:59.8]} 15. Bb2 {[%clk
0:03:26.4]} 15... Qc7 {[%clk 0:03:42.5]} 16. cxd5 {[%clk 0:03:19.5]} 16... Bxd5
{[%clk 0:03:39.9]} 17. Nxe4 {[%clk 0:03:07.3]} 17... Bxe4 {[%clk 0:03:30.1]} 18.
Qc3 {[%clk 0:03:01.7]} 18... Bd5 {[%clk 0:02:55.9]} 19. Nd4 {[%clk 0:02:49.7]}
19... Ne4 {[%clk 0:02:47.9]} 20. Qxc7 {[%clk 0:02:40.5]} 20... Bxc7 {[%clk
0:02:43.9]} 21. Nb5 {[%clk 0:02:30.4]} 21... Bb8 {[%clk 0:02:31.2]} 22. Nd4
{[%clk 0:02:07.7]} 22... Be5 {[%clk 0:02:20.7]} 23. Rc1 {[%clk 0:01:47.4]} 23...
Bxd4 {[%clk 0:02:11.4]} 24. Bxd4 {[%clk 0:01:44.9]} 24... Bxb3 {[%clk
0:02:07.8]} 25. a5 {[%clk 0:01:37]} 25... bxa5 {[%clk 0:02:02.5]} 26. Bxa7
{[%clk 0:01:34.7]} 26... a4 {[%clk 0:02:00.3]} 27. Bxe4 {[%clk 0:01:30.7]} 27...
fxe4 {[%clk 0:02:00.2]} 28. Bc5 {[%clk 0:01:26.2]} 28... Rfd8 {[%clk 0:01:50.9]}
29. Ba3 {[%clk 0:01:22.6]} 29... Kf7 {[%clk 0:01:41.6]} 30. h3 {[%clk 0:01:10]}
30... Rxc1 {[%clk 0:01:21.1]} 31. Rxc1 {[%clk 0:01:06.1]} 31... Rd2 {[%clk
0:01:19.9]} 32. Ra1 {[%clk 0:01:03.3]} 32... Kg6 {[%clk 0:01:12.1]} 33. Kf1
{[%clk 0:00:57.8]} 33... Bc4+ {[%clk 0:01:08.5]} 34. Kg1 {[%clk 0:00:52.5]}
34... Kf5 {[%clk 0:01:05.4]} 35. Bb4 {[%clk 0:00:37.6]} 35... Rb2 {[%clk
0:01:03.8]} 36. Bc3 {[%clk 0:00:35.4]} 36... Rb3 {[%clk 0:01:00.4]} 37. Bxg7
{[%clk 0:00:34.2]} 37... a3 {[%clk 0:00:56.1]} 38. Bf8 {[%clk 0:00:32.7]} 38...
a2 {[%clk 0:00:55.3]} 39. Bg7 {[%clk 0:00:19.4]} 39... Rb1+ {[%clk 0:00:53.7]}
40. Kh2 {[%clk 0:00:17.6]} 40... e5 {[%clk 0:00:52.5]} 0-1

[Event "Live Chess"]
[Site "Chess.com"]
[Date "2023.05.20"]
[Round "-"]
[White "onemoretime1975"]
[Black "PackedNote"]
[Result "1-0"]
[WhiteElo "1909"]
[BlackElo "784"]
[TimeControl "300"]
[EndTime "10:08:06 PDT"]
[Termination "onemoretime1975 won by resignation"]

1. e4 {[%clk 0:04:55.5]} 1... e5 {[%clk 0:04:58.8]} 2. Nf3 {[%clk 0:04:54]} 2...
Nc6 {[%clk 0:04:57.9]} 3. Bc4 {[%clk 0:04:50.6]} 3... Nf6 {[%clk 0:04:55.8]} 4.
d3 {[%clk 0:04:48.5]} 4... d6 {[%clk 0:04:50]} 5. h3 {[%clk 0:04:44.9]} 5... Be7
{[%clk 0:04:46]} 6. O-O {[%clk 0:04:42.6]} 6... h6 {[%clk 0:04:43.1]} 7. a3
{[%clk 0:04:40.9]} 7... O-O {[%clk 0:04:42]} 8. Nc3 {[%clk 0:04:39.3]} 8... a6
{[%clk 0:04:30.1]} 9. Nd5 {[%clk 0:04:37.1]} 9... b5 {[%clk 0:04:25.3]} 10.
Nxf6+ {[%clk 0:04:29.7]} 10... Bxf6 {[%clk 0:04:21.5]} 11. Bd5 {[%clk
0:04:28.7]} 11... Bd7 {[%clk 0:04:16.2]} 12. Nh2 {[%clk 0:04:23.8]} 12... Re8
{[%clk 0:04:06.3]} 13. Ng4 {[%clk 0:04:21.1]} 13... Rb8 {[%clk 0:03:52.7]} 14.
f4 {[%clk 0:04:12.6]} 14... Bxg4 {[%clk 0:03:29.1]} 15. hxg4 {[%clk 0:03:49.7]}
15... Qd7 {[%clk 0:03:16.1]} 16. g5 {[%clk 0:03:44.5]} 16... hxg5 {[%clk
0:03:08.7]} 17. fxg5 {[%clk 0:03:42.4]} 17... Be7 {[%clk 0:03:06]} 18. Bxf7+
{[%clk 0:03:38.9]} 18... Kf8 {[%clk 0:03:02.4]} 19. Be6+ {[%clk 0:03:26.8]} 1-0

[Event "Live Chess"]
[Site "Chess.com"]
[Date "2023.05.20"]
[Round "-"]
[White "chrisbradgate"]
[Black "jennybobby44"]
[Result "0-1"]
[WhiteElo "840"]
[BlackElo "1853"]
[TimeControl "300"]
[EndTime "10:08:08 PDT"]
[Termination "jennybobby44 won by checkmate"]

1. d4 {[%clk 0:04:58.7]} 1... d5 {[%clk 0:04:58.8]} 2. Bf4 {[%clk 0:04:55.2]}
2... Nf6 {[%clk 0:04:57.2]} 3. e3 {[%clk 0:04:54.2]} 3... c5 {[%clk 0:04:55.4]}
4. c3 {[%clk 0:04:52.1]} 4... Nc6 {[%clk 0:04:54]} 5. Bb5 {[%clk 0:04:50.8]}
5... Bd7 {[%clk 0:04:51.9]} 6. Nd2 {[%clk 0:04:46.6]} 6... a6 {[%clk 0:04:50.9]}
7. Bxc6 {[%clk 0:04:44.1]} 7... Bxc6 {[%clk 0:04:48.9]} 8. Qc2 {[%clk
0:04:42.8]} 8... e6 {[%clk 0:04:46.4]} 9. O-O-O {[%clk 0:04:41.6]} 9... Nh5
{[%clk 0:04:34.1]} 10. Bg3 {[%clk 0:04:38]} 10... Nxg3 {[%clk 0:04:32.8]} 11.
hxg3 {[%clk 0:04:36.9]} 11... h6 {[%clk 0:04:32]} 12. Ngf3 {[%clk 0:04:33.8]}
12... Qa5 {[%clk 0:04:03.1]} 13. a3 {[%clk 0:04:29.1]} 13... O-O-O {[%clk
0:04:00.1]} 14. Ne5 {[%clk 0:04:27.4]} 14... Be8 {[%clk 0:03:58.3]} 15. Ndf3
{[%clk 0:04:11.1]} 15... Kb8 {[%clk 0:03:53.6]} 16. Rhe1 {[%clk 0:03:58.6]}
16... Rg8 {[%clk 0:03:25.2]} 17. Nc6+ {[%clk 0:03:20.8]} 17... Bxc6 {[%clk
0:03:18.7]} 18. Ne5 {[%clk 0:03:16.6]} 18... Be8 {[%clk 0:03:15.2]} 19. b4
{[%clk 0:03:10.2]} 19... Qxa3+ {[%clk 0:03:12.3]} 20. Kd2 {[%clk 0:03:06.9]}
20... cxb4 {[%clk 0:03:10.1]} 21. Ke2 {[%clk 0:02:52.3]} 21... Qxc3 {[%clk
0:02:58.6]} 22. Qxc3 {[%clk 0:02:51]} 22... bxc3 {[%clk 0:02:57.4]} 23. Rc1
{[%clk 0:02:48.3]} 23... f6 {[%clk 0:02:55.2]} 24. Ng4 {[%clk 0:02:45.2]} 24...
Bb5+ {[%clk 0:02:52.6]} 25. Kf3 {[%clk 0:02:42.6]} 25... Bb4 {[%clk 0:02:50.5]}
26. Rc2 {[%clk 0:02:27.2]} 26... h5 {[%clk 0:02:48.4]} 27. Nh2 {[%clk
0:02:22.1]} 27... g5 {[%clk 0:02:47.5]} 28. g4 {[%clk 0:02:15.9]} 28... f5
{[%clk 0:02:41.7]} 29. gxf5 {[%clk 0:02:11]} 29... exf5 {[%clk 0:02:39.9]} 30.
g3 {[%clk 0:02:03.9]} 30... a5 {[%clk 0:02:32.9]} 31. Rb1 {[%clk 0:01:57.8]}
31... Bd3 {[%clk 0:02:31.3]} 32. Rxb4 {[%clk 0:01:53.9]} 32... axb4 {[%clk
0:02:30.1]} 33. Ra2 {[%clk 0:01:50.1]} 33... b3 {[%clk 0:02:29.1]} 34. Ra3
{[%clk 0:01:42.6]} 34... b2 {[%clk 0:02:26.9]} 35. Rxc3 {[%clk 0:01:41.6]} 35...
b1=Q {[%clk 0:02:25.6]} 36. Rxd3 {[%clk 0:01:37.4]} 36... Qxd3 {[%clk
0:02:24.4]} 37. Kg2 {[%clk 0:01:34]} 37... f4 {[%clk 0:02:22.6]} 38. gxf4 {[%clk
0:01:30.6]} 38... gxf4+ {[%clk 0:02:21.6]} 39. Kf3 {[%clk 0:01:26.5]} 39... fxe3
{[%clk 0:02:20.5]} 40. fxe3 {[%clk 0:01:24.3]} 40... Rdf8# {[%clk 0:02:19.4]}
0-1

[Event "Live Chess"]
[Site "Chess.com"]
[Date "2023.05.20"]
[Round "-"]
[White "KuriyamaMiraiUA"]
[Black "LL220284LL"]
[Result "0-1"]
[WhiteElo "655"]
[BlackElo "2411"]
[TimeControl "300"]
[EndTime "10:08:15 PDT"]
[Termination "LL220284LL won by checkmate"]

1. d4 {[%clk 0:04:57.1]} 1... b6 {[%clk 0:04:58.5]} 2. c4 {[%clk 0:04:55.1]}
2... e6 {[%clk 0:04:57.2]} 3. Nc3 {[%clk 0:04:54.3]} 3... Nf6 {[%clk 0:04:56.2]}
4. e3 {[%clk 0:04:52.4]} 4... d5 {[%clk 0:04:55.2]} 5. Bd3 {[%clk 0:04:51.1]}
5... dxc4 {[%clk 0:04:53.6]} 6. Bxc4 {[%clk 0:04:50.2]} 6... Bb7 {[%clk
0:04:53.5]} 7. Nf3 {[%clk 0:04:47.8]} 7... Be7 {[%clk 0:04:53.1]} 8. O-O {[%clk
0:04:46.2]} 8... O-O {[%clk 0:04:52.8]} 9. b4 {[%clk 0:04:37.8]} 9... Bxb4
{[%clk 0:04:50.5]} 10. Bb2 {[%clk 0:04:31]} 10... Nbd7 {[%clk 0:04:48.1]} 11.
Qb3 {[%clk 0:04:21.8]} 11... Be7 {[%clk 0:04:46.2]} 12. Nb5 {[%clk 0:04:15.6]}
12... a6 {[%clk 0:04:37.7]} 13. Nc3 {[%clk 0:04:06.8]} 13... b5 {[%clk
0:04:35.2]} 14. Bxb5 {[%clk 0:04:01.2]} 14... axb5 {[%clk 0:04:33.1]} 15. Qxb5
{[%clk 0:03:59.4]} 15... Ba6 {[%clk 0:04:32.5]} 16. Qb3 {[%clk 0:03:49.9]} 16...
Rb8 {[%clk 0:04:30.3]} 17. Qc2 {[%clk 0:03:41.3]} 17... Bxf1 {[%clk 0:04:26.6]}
18. Rxf1 {[%clk 0:03:38.4]} 18... c5 {[%clk 0:04:26.5]} 19. dxc5 {[%clk
0:03:36.8]} 19... Nxc5 {[%clk 0:04:26.4]} 20. Ba3 {[%clk 0:03:33.9]} 20... Qa5
{[%clk 0:04:25]} 21. Bxc5 {[%clk 0:03:29.3]} 21... Qxc5 {[%clk 0:04:22.2]} 22.
Rd1 {[%clk 0:03:19.8]} 22... Rfc8 {[%clk 0:04:20.3]} 23. Rd3 {[%clk 0:03:15.5]}
23... Nd5 {[%clk 0:04:17.8]} 24. Qd2 {[%clk 0:02:57.9]} 24... Nxc3 {[%clk
0:04:15.6]} 25. Rxc3 {[%clk 0:02:56.8]} 25... Qxc3 {[%clk 0:04:13.2]} 26. Qxc3
{[%clk 0:02:55.6]} 26... Rxc3 {[%clk 0:04:12.1]} 27. Nd4 {[%clk 0:02:53.7]}
27... Rc1# {[%clk 0:04:10.8]} 0-1

[Event "Live Chess"]
[Site "Chess.com"]
[Date "2023.05.20"]
[Round "-"]
[White "Nico14021974"]
[Black "Tema1107"]
[Result "0-1"]
[WhiteElo "458"]
[BlackElo "1983"]
[TimeControl "300"]
[EndTime "10:08:15 PDT"]
[Termination "Tema1107 won by checkmate"]

1. e4 {[%clk 0:04:57.4]} 1... c5 {[%clk 0:04:58.5]} 2. Na3 {[%clk 0:04:52.1]}
2... Nc6 {[%clk 0:04:57.3]} 3. Nf3 {[%clk 0:04:50.7]} 3... Nf6 {[%clk
0:04:55.6]} 4. d3 {[%clk 0:04:46.4]} 4... d5 {[%clk 0:04:52.9]} 5. exd5 {[%clk
0:04:45]} 5... Nxd5 {[%clk 0:04:52.8]} 6. c3 {[%clk 0:04:39.5]} 6... g6 {[%clk
0:04:50.8]} 7. c4 {[%clk 0:04:37.4]} 7... Nf6 {[%clk 0:04:47.8]} 8. Bd2 {[%clk
0:04:31.3]} 8... Bg7 {[%clk 0:04:45.2]} 9. Be2 {[%clk 0:04:29.6]} 9... O-O
{[%clk 0:04:38.6]} 10. O-O {[%clk 0:04:26.8]} 10... Bg4 {[%clk 0:04:36.1]} 11.
h3 {[%clk 0:04:23.6]} 11... Bxf3 {[%clk 0:04:33.9]} 12. gxf3 {[%clk 0:04:22.3]}
12... Nd4 {[%clk 0:04:31.6]} 13. Nc2 {[%clk 0:04:14.3]} 13... Nh5 {[%clk
0:04:26.9]} 14. Nxd4 {[%clk 0:04:11]} 14... Bxd4 {[%clk 0:04:26.8]} 15. Rc1
{[%clk 0:04:05.2]} 15... e5 {[%clk 0:04:21]} 16. Kh1 {[%clk 0:03:47.8]} 16...
Qh4 {[%clk 0:04:11.4]} 17. Rg1 {[%clk 0:03:45.2]} 17... Qxh3# {[%clk 0:04:09.5]}
0-1

[Event "Live Chess"]
[Site "Chess.com"]
[Date "2023.05.20"]
[Round "-"]
[White "KGreenGator"]
[Black "JackRudd"]
[Result "0-1"]
[WhiteElo "1768"]
[BlackElo "2400"]
[TimeControl "300"]
[EndTime "10:08:18 PDT"]
[Termination "JackRudd won by resignation"]

1. c4 {[%clk 0:04:59.2]} 1... Nf6 {[%clk 0:04:58]} 2. Nc3 {[%clk 0:04:58.4]}
2... g6 {[%clk 0:04:57.4]} 3. d4 {[%clk 0:04:57.7]} 3... Bg7 {[%clk 0:04:56.7]}
4. Nf3 {[%clk 0:04:57.3]} 4... O-O {[%clk 0:04:55.6]} 5. e4 {[%clk 0:04:56.9]}
5... d6 {[%clk 0:04:54.4]} 6. Be2 {[%clk 0:04:55.1]} 6... e5 {[%clk 0:04:52.5]}
7. d5 {[%clk 0:04:53.7]} 7... Nbd7 {[%clk 0:04:50.5]} 8. h3 {[%clk 0:04:52.7]}
8... Nc5 {[%clk 0:04:48.9]} 9. O-O {[%clk 0:04:52.4]} 9... Nfxe4 {[%clk
0:04:47.2]} 10. Nxe4 {[%clk 0:04:50.9]} 10... Nxe4 {[%clk 0:04:46.4]} 11. Bd3
{[%clk 0:04:49.7]} 11... f5 {[%clk 0:04:44.6]} 12. Bxe4 {[%clk 0:04:47.5]} 12...
fxe4 {[%clk 0:04:43.9]} 13. Nd2 {[%clk 0:04:45.9]} 13... Bf5 {[%clk 0:04:41.6]}
14. Re1 {[%clk 0:04:45.1]} 14... Qh4 {[%clk 0:04:39.4]} 15. Qe2 {[%clk
0:04:41.7]} 15... Rf7 {[%clk 0:04:37.8]} 16. Qe3 {[%clk 0:04:27.7]} 16... Raf8
{[%clk 0:04:35.6]} 17. Nf1 {[%clk 0:04:22.9]} 17... c6 {[%clk 0:04:27.8]} 18.
Ng3 {[%clk 0:04:21.2]} 18... cxd5 {[%clk 0:04:23.8]} 19. cxd5 {[%clk 0:04:19.2]}
19... Bxh3 {[%clk 0:04:22.6]} 20. gxh3 {[%clk 0:04:09.8]} 20... Rf3 {[%clk
0:04:20.9]} 21. Qxe4 {[%clk 0:04:01.1]} 21... Rxg3+ {[%clk 0:04:15.4]} 22. fxg3
{[%clk 0:03:59.6]} 22... Qxg3+ {[%clk 0:04:14.1]} 23. Kh1 {[%clk 0:03:56.6]}
23... Qxh3+ {[%clk 0:04:09.8]} 24. Kg1 {[%clk 0:03:49.8]} 24... Qg3+ {[%clk
0:04:08.9]} 25. Kh1 {[%clk 0:03:48.3]} 25... Rf2 {[%clk 0:04:07.9]} 0-1

[Event "Live Chess"]
[Site "Chess.com"]
[Date "2023.05.20"]
[Round "-"]
[White "siddu198"]
[Black "NatashaRegan"]
[Result "0-1"]
[WhiteElo "1610"]
[BlackElo "1856"]
[TimeControl "300"]
[EndTime "10:08:20 PDT"]
[Termination "NatashaRegan won by resignation"]

1. e4 {[%clk 0:04:59]} 1... Nf6 {[%clk 0:04:55.7]} 2. Nc3 {[%clk 0:04:57.6]}
2... e5 {[%clk 0:04:53.5]} 3. Nf3 {[%clk 0:04:56.2]} 3... Nc6 {[%clk 0:04:51.5]}
4. Bb5 {[%clk 0:04:50.7]} 4... Bc5 {[%clk 0:04:48.9]} 5. d3 {[%clk 0:04:48.7]}
5... d6 {[%clk 0:04:45.6]} 6. Bxc6+ {[%clk 0:04:33.1]} 6... bxc6 {[%clk
0:04:42.7]} 7. Be3 {[%clk 0:04:30.3]} 7... Bxe3 {[%clk 0:04:38.1]} 8. fxe3
{[%clk 0:04:29.5]} 8... Bg4 {[%clk 0:04:36.8]} 9. h3 {[%clk 0:04:28.2]} 9... Bh5
{[%clk 0:04:35]} 10. g4 {[%clk 0:04:27.4]} 10... Bg6 {[%clk 0:04:33.6]} 11. Qe2
{[%clk 0:04:24.6]} 11... O-O {[%clk 0:04:30.9]} 12. h4 {[%clk 0:04:09.8]} 12...
Nxg4 {[%clk 0:04:27.6]} 13. h5 {[%clk 0:04:08.8]} 13... Qf6 {[%clk 0:04:17.2]}
14. hxg6 {[%clk 0:04:04.6]} 14... fxg6 {[%clk 0:04:16.3]} 15. Rf1 {[%clk
0:03:18.9]} 15... Qe6 {[%clk 0:04:09.4]} 16. O-O-O {[%clk 0:03:03.3]} 16... Rab8
{[%clk 0:04:02.8]} 17. Ng5 {[%clk 0:02:50.7]} 17... Qd7 {[%clk 0:03:50.7]} 18.
Rxf8+ {[%clk 0:02:46.1]} 18... Rxf8 {[%clk 0:03:48.2]} 19. Rg1 {[%clk
0:02:40.1]} 19... h5 {[%clk 0:03:44.6]} 20. Nf3 {[%clk 0:02:33.1]} 20... d5
{[%clk 0:03:36.4]} 21. Nd2 {[%clk 0:02:12.5]} 21... d4 {[%clk 0:03:29.2]} 22.
exd4 {[%clk 0:02:06.3]} 22... Rf2 {[%clk 0:03:22.8]} 23. Qd1 {[%clk 0:01:51.8]}
23... Qxd4 {[%clk 0:03:17.7]} 24. Re1 {[%clk 0:01:37.2]} 24... Ne3 {[%clk
0:03:11.2]} 25. Ne2 {[%clk 0:01:11.7]} 25... Qa4 {[%clk 0:02:58.3]} 0-1